fUSD/lending_fUSD_20250428
["ID","MTS","AMOUNT","RATE_DAILY","PERIOD"]
[359253184,1745871058469,-151.0,0.0003863,14]
[359253185,1745871058479,-470.0,0.0003863,6]
[359253186,1745871058489,-470.0,0.0003863,6]
[359253187,1745871058499,-470.0,0.0003863,6]
[359253188,1745871058508,-470.0,0.0003863,6]
[359253189,1745871058518,-470.0,0.0003863,6]
[359253190,1745871058528,-470.0,0.0003863,6]
[359253191,1745871058537,-470.0,0.0003863,6]
[359253192,1745871058547,-489.77,0.0003863,6]
[359253193,1745871058557,-470.0,0.0003863,6]
[359253194,1745871058567,-470.0,0.0003863,6]
[359253195,1745871058580,-470.0,0.0003863,6]
[359253196,1745871058590,-470.0,0.0003863,6]
[359253197,1745871058600,-470.0,0.0003863,6]
[359253198,1745871058610,-470.0,0.0003863,6]
[359253199,1745871058622,-470.0,0.0003863,6]
[359253200,1745871058633,-490.26,0.0003863,6]
[359253201,1745871058643,-959.38,0.0003863,6]
[359253202,1745871058655,-470.0,0.0003863,6]
[359253203,1745871058665,-470.0,0.0003863,6]
[359253204,1745871058675,-470.0,0.0003863,6]
[359253205,1745871058685,-737.24,0.0003863,6]
[359253206,1745871058695,-949.22,0.0003863,6]
[359253207,1745871058705,-470.0,0.0003863,6]
[359253208,1745871058715,-470.0,0.0003863,6]
[359253209,1745871058724,-470.0,0.0003863,6]
[359253210,1745871058733,-470.0,0.0003863,6]
[359253211,1745871058743,-36111.45,0.0003863,6]
[359253212,1745871058752,-470.0,0.0003863,6]
[359253213,1745871058762,-470.0,0.0003863,6]
[359253214,1745871058772,-269.68871723,0.0003863,6]
[359253215,1745871058782,-470.0,0.0003863,6]
[359253216,1745871058791,-470.0,0.0003863,6]
[359253217,1745871058800,-470.0,0.0003863,6]
[359253218,1745871058810,-470.0,0.0003863,6]
[359253219,1745871058819,-470.0,0.0003863,6]
[359253220,1745871058829,-470.0,0.0003863,6]
[359253221,1745871058839,-470.0,0.0003863,6]
[359253222,1745871058849,-470.0,0.0003863,6]
[359253223,1745871058858,-470.0,0.0003863,6]
[359253224,1745871058867,-643.47,0.0003863,6]
[359253225,1745871058876,-470.0,0.0003863,6]
[359253226,1745871058886,-470.0,0.0003863,6]
[359253227,1745871058895,-709.72,0.0003863,6]
[359253228,1745871058904,-641.22,0.0003863,6]
[359253229,1745871058914,-470.0,0.0003863,6]
[359253230,1745871058923,-170.98708793,0.0003863,6]
[359253231,1745871058933,-499.11,0.0003863,2]
[359253232,1745871058943,-3776.03,0.0003863,6]
[359253233,1745871058954,-470.0,0.0003863,6]
[359253234,1745871058965,-470.0,0.0003863,6]
[359253235,1745871058975,-201.71736,0.0003863,14]
[359253236,1745871058984,-201.71736,0.0003863,14]
[359253237,1745871058994,-470.0,0.0003863,6]
[359253238,1745871059005,-470.0,0.0003863,6]
[359253239,1745871059015,-470.0,0.0003863,6]
[359253240,1745871059024,-470.0,0.0003863,6]
[359253241,1745871059034,-470.0,0.0003863,6]
[359253242,1745871059043,-470.0,0.0003863,6]
[359253243,1745871059057,-470.0,0.0003863,6]
[359253244,1745871059066,-487.84,0.0003863,2]
[359253245,1745871059075,-201.71736,0.0003863,14]
[359253246,1745871059085,-470.0,0.0003863,6]
[359253247,1745871059095,-201.71736,0.0003863,14]
[359253248,1745871059104,-479.49,0.0003863,6]
[359253249,1745871059114,-470.0,0.0003863,6]
[359253250,1745871059123,-4084.28,0.0003863,6]
[359253251,1745871059134,-631.83,0.0003863,6]
[359253252,1745871059144,-470.0,0.0003863,6]
[359253253,1745871059154,-470.0,0.0003863,6]
[359253254,1745871059164,-470.0,0.0003863,6]
[359253255,1745871059174,-276.621007,0.0003863,14]
[359253256,1745871059184,-276.621007,0.0003863,14]
[359253257,1745871059193,-470.0,0.0003863,6]
[359253258,1745871059203,-470.0,0.0003863,6]
[359253259,1745871059214,-591.3,0.0003863,6]
[359253260,1745871059225,-866.47,0.0003863,6]
[359253261,1745871059235,-470.0,0.0003863,6]
[359253262,1745871059244,-470.0,0.0003863,6]
[359253263,1745871059254,-470.0,0.0003863,6]
[359253264,1745871059264,-470.0,0.0003863,6]
[359253265,1745871059273,-1437.91,0.0003863,6]
[359253266,1745871059283,-276.621007,0.0003863,14]
[359253267,1745871059292,-276.621007,0.0003863,14]
[359253268,1745871059302,-470.0,0.0003863,6]
[359253269,1745871059312,-470.0,0.0003863,6]
[359253270,1745871059322,-470.0,0.0003863,6]
[359253271,1745871059331,-470.0,0.0003863,6]
[359253272,1745871059341,-470.0,0.0003863,6]
[359253273,1745871059350,-470.0,0.0003863,6]
[359253274,1745871059360,-470.0,0.0003863,6]
[359253275,1745871059369,-831.96,0.0003863,6]
[359253276,1745871059379,-470.0,0.0003863,6]
[359253277,1745871059388,-16513.68,0.0003863,6]
[359253278,1745871059398,-748.7,0.0003863,6]
[359253279,1745871059407,-470.0,0.0003863,6]
[359253280,1745871059417,-470.0,0.0003863,6]
[359253281,1745871059426,-470.0,0.0003863,6]
[359253282,1745871059435,-493.46,0.0003863,6]
[359253283,1745871059445,-470.0,0.0003863,6]
[359253284,1745871059455,-699.32,0.0003863,6]
[359253285,1745871059464,-470.0,0.0003863,6]
[359253286,1745871059474,-470.0,0.0003863,6]
[359253287,1745871059483,-514.17,0.0003863,6]
[359253288,1745871059493,-470.0,0.0003863,6]
[359253289,1745871059502,-470.0,0.0003863,6]
[359253290,1745871059513,-470.0,0.0003863,6]
[359253291,1745871059523,-564.18,0.0003863,6]
[359253292,1745871059533,-470.0,0.0003863,6]
[359253293,1745871059543,-470.0,0.0003863,6]
[359253294,1745871059553,-705.0,0.0003863,6]
[359253295,1745871059563,-470.0,0.0003863,6]
[359253296,1745871059573,-470.0,0.0003863,6]
[359253297,1745871059585,-470.0,0.0003863,6]
[359253298,1745871059595,-470.0,0.0003863,6]
[359253299,1745871059605,-470.0,0.0003863,6]
[359253300,1745871059777,-470.0,0.0003863,6]
[359253301,1745871059787,-1000.0,0.0003863,6]
[359253302,1745871059797,-312.59061281,0.0003863,6]
[359253303,1745871059806,-470.0,0.0003863,6]
[359253304,1745871059816,-508.15,0.0003863,6]
[359253305,1745871059825,-414.36261367,0.0003863,6]
[359253306,1745871059834,-470.0,0.0003863,6]
[359253307,1745871059844,-470.0,0.0003863,6]
[359253308,1745871059853,-470.0,0.0003863,6]
[359253309,1745871059863,-470.0,0.0003863,6]
[359253310,1745871059872,-674.93,0.0003863,6]
[359253311,1745871059881,-540.54,0.0003863,6]
[359253312,1745871059890,-470.0,0.0003863,6]
[359253313,1745871059900,-488.09,0.0003863,6]
[359253314,1745871059910,-817.35,0.0003863,6]
[359253315,1745871059919,-470.0,0.0003863,6]
[359253316,1745871059929,-151.0,0.0003863,14]
[359253317,1745871059939,-470.0,0.0003863,6]
[359253318,1745871059948,-151.0,0.0003863,14]
[359253319,1745871059960,-999.56,0.0003863,6]
[359253320,1745871059970,-470.0,0.0003863,6]
[359253321,1745871059979,-470.0,0.0003863,6]
[359253322,1745871059989,-470.0,0.0003863,6]
[359253323,1745871060001,-55254.58,0.0003863,6]
[359253324,1745871060011,-400.0,0.0003863,6]
[359253325,1745871060022,-525.11,0.0003863,6]
[359253326,1745871060031,-967.06,0.0003863,6]
[359253327,1745871060040,-470.0,0.0003863,6]
[359253328,1745871060050,-470.0,0.0003863,6]
[359253329,1745871060059,-470.0,0.0003863,6]
[359253330,1745871060068,-178.455375,0.0003863,14]
[359253331,1745871060078,-470.0,0.0003863,6]
[359253332,1745871060087,-180.32340978,0.0003863,6]
[359253333,1745871060097,-470.0,0.0003863,6]
[359253334,1745871060107,-470.0,0.0003863,6]
[359253335,1745871060117,-626.05,0.0003863,6]
[359253336,1745871060128,-470.0,0.0003863,6]
[359253337,1745871060139,-537.64,0.0003863,6]
[359253338,1745871060149,-470.0,0.0003863,6]
[359253339,1745871060159,-558.65,0.0003863,6]
[359253340,1745871060169,-505.0,0.0003863,6]
[359253341,1745871060179,-228.926148,0.0003863,14]
[359253342,1745871060188,-470.0,0.0003863,6]
[359253343,1745871060199,-470.0,0.0003863,6]
[359253344,1745871060211,-228.926148,0.0003863,14]
[359253345,1745871060221,-571.85,0.0003863,6]
[359253346,1745871060230,-470.0,0.0003863,6]
[359253347,1745871060240,-610.48117481,0.0003863,6]
[359253348,1745871060250,-2038.52,0.0003863,6]
[359253349,1745871060259,-470.0,0.0003863,6]
[359253350,1745871060269,-381.62960689,0.0003863,6]
[359253351,1745871060278,-470.0,0.0003863,6]
[359253352,1745871060287,-470.0,0.0003863,6]
[359253353,1745871060297,-470.0,0.0003863,6]
[359253354,1745871060307,-470.0,0.0003863,6]
[359253355,1745871060316,-585.84285063,0.0003863,6]
[359253356,1745871060325,-400.0,0.0003863,6]
[359253357,1745871060335,-470.0,0.0003863,6]
[359253358,1745871060344,-914.3,0.0003863,6]
[359253359,1745871060354,-158.97657373,0.0003863,6]
[359253360,1745871060364,-1870.47,0.0003863,6]
[359253361,1745871060374,-470.0,0.0003863,6]
[359253362,1745871060383,-470.0,0.0003863,6]
[359253363,1745871060393,-470.0,0.0003863,6]
[359253364,1745871060402,-1481.17,0.0003863,6]
[359253365,1745871060411,-470.0,0.0003863,6]
[359253366,1745871060421,-470.0,0.0003863,6]
[359253367,1745871060430,-470.0,0.0003863,6]
[359253368,1745871060440,-470.0,0.0003863,6]
[359253369,1745871060449,-316.55485335,0.0003863,6]
[359253370,1745871060459,-470.0,0.0003863,6]
[359253371,1745871060469,-470.0,0.0003863,6]
[359253372,1745871060478,-470.0,0.0003863,6]
[359253373,1745871060488,-470.0,0.0003863,6]
[359253374,1745871060497,-569.36619781,0.0003863,6]
[359253375,1745871060507,-470.0,0.0003863,6]
[359253376,1745871060516,-470.0,0.0003863,6]
[359253377,1745871060526,-470.0,0.0003863,6]
[359253378,1745871060536,-470.0,0.0003863,6]
[359253379,1745871060545,-470.0,0.0003863,6]
[359253380,1745871060555,-470.0,0.0003863,6]
[359253381,1745871060564,-470.0,0.0003863,6]
[359253382,1745871060575,-470.0,0.0003863,6]
[359253383,1745871060585,-806.04,0.0003863,6]
[359253384,1745871060595,-470.0,0.0003863,6]
[359253385,1745871060605,-470.0,0.0003863,6]
[359253386,1745871060614,-470.0,0.0003863,6]
[359253387,1745871060625,-577.48404222,0.0003863,6]
[359253388,1745871060636,-470.0,0.0003863,6]
[359253389,1745871060647,-470.0,0.0003863,6]
[359253390,1745871060659,-470.0,0.0003863,6]
[359253391,1745871060669,-470.0,0.0003863,6]
[359253392,1745871060678,-479.83,0.0003863,6]
[359253393,1745871060688,-470.0,0.0003863,6]
[359253394,1745871060699,-470.0,0.0003863,6]
[359253395,1745871060710,-470.0,0.0003863,6]
[359253396,1745871060722,-470.0,0.0003863,6]
[359253397,1745871060731,-470.0,0.0003863,6]
[359253398,1745871060742,-151.0,0.0003863,14]
[359253399,1745871060752,-151.0,0.0003863,14]
[359253400,1745871060762,-470.0,0.0003863,6]
[359253401,1745871060771,-470.0,0.0003863,6]
[359253402,1745871060781,-815.51,0.0003863,6]
[359253403,1745871060792,-470.0,0.0003863,6]
[359253404,1745871060802,-470.0,0.0003863,6]
[359253405,1745871060812,-470.0,0.0003863,6]
[359253406,1745871060823,-476.55,0.0003863,6]
[359253407,1745871060833,-470.0,0.0003863,6]
[359253408,1745871060842,-470.0,0.0003863,6]
[359253409,1745871060852,-587.53486796,0.0003863,6]
[359253410,1745871060861,-581.16,0.0003863,6]
[359253411,1745871060871,-470.0,0.0003863,6]
[359253412,1745871060880,-641.618154,0.0003863,14]
[359253413,1745871060890,-470.0,0.0003863,6]
[359253414,1745871060902,-470.0,0.0003863,5]
[359253415,1745871060911,-470.0,0.0003863,6]
[359253416,1745871060921,-641.618154,0.0003863,14]
[359253417,1745871060932,-470.0,0.0003863,6]
[359253418,1745871060943,-3347.11,0.0003863,6]
[359253419,1745871060952,-470.0,0.0003863,6]
[359253420,1745871060962,-705.61,0.0003863,6]
[359253421,1745871060972,-481.99914394,0.0003863,6]
[359253422,1745871060981,-470.0,0.0003863,6]
[359253423,1745871060991,-490.54,0.0003863,6]
[359253424,1745871061001,-470.0,0.0003863,6]
[359253425,1745871061011,-543.92,0.0003863,6]
[359253426,1745871061020,-151.0,0.0003863,14]
[359253427,1745871061030,-470.0,0.0003863,6]
[359253428,1745871061040,-470.0,0.0003863,6]
[359253429,1745871061049,-534.84,0.0003863,6]
[359253430,1745871061059,-604.39,0.0003863,6]
[359253431,1745871061071,-557.53387412,0.0003863,6]
[359253432,1745871061082,-999.4,0.0003863,6]
[359253433,1745871061094,-470.0,0.0003863,6]
[359253434,1745871061104,-470.0,0.0003863,6]
[359253435,1745871061114,-470.0,0.0003863,6]
[359253436,1745871061123,-470.0,0.0003863,6]
[359253437,1745871061134,-470.0,0.0003863,6]
[359253438,1745871061143,-151.0,0.0003863,14]
[359253439,1745871061152,-792.79,0.0003863,6]
[359253440,1745871061162,-470.0,0.0003863,6]
[359253441,1745871061172,-470.0,0.0003863,6]
[359253442,1745871061181,-470.0,0.0003863,6]
[359253443,1745871061191,-151.0,0.0003863,14]
[359253444,1745871061202,-470.0,0.0003863,6]
[359253445,1745871061214,-470.0,0.0003863,6]
[359253446,1745871061224,-470.0,0.0003863,6]
[359253447,1745871061234,-470.0,0.0003863,6]
[359253448,1745871061243,-470.0,0.0003863,6]
[359253449,1745871061253,-151.0,0.0003863,14]
[359253450,1745871061264,-470.0,0.0003863,6]
[359253451,1745871061275,-794.07,0.0003863,6]
[359253452,1745871061285,-470.0,0.0003863,6]
[359253453,1745871061294,-477.2752927,0.0003863,6]
[359253454,1745871061304,-470.0,0.0003863,6]
[359253455,1745871061315,-470.0,0.0003863,6]
[359253456,1745871061325,-598.51,0.0003863,6]
[359253457,1745871061335,-356.33320758,0.0003863,6]
[359253458,1745871061344,-470.0,0.0003863,6]
[359253459,1745871061354,-470.0,0.0003863,6]
[359253460,1745871061363,-980.68,0.0003863,6]
[359253461,1745871061373,-470.0,0.0003863,6]
[359253462,1745871061382,-610.42,0.0003863,6]
[359253463,1745871061392,-151.0,0.0003863,14]
[359253464,1745871061403,-470.0,0.0003863,6]
[359253465,1745871061412,-855.1,0.0003863,6]
[359253466,1745871061421,-531.20614991,0.0003863,3]
[359253467,1745871061431,-470.0,0.0003863,6]
[359253468,1745871061442,-200.292251,0.0003863,14]
[359253469,1745871061452,-705.37,0.0003863,6]
[359253470,1745871061462,-470.0,0.0003863,6]
[359253471,1745871061472,-1237.5,0.0003863,6]
[359253472,1745871061482,-470.0,0.0003863,6]
[359253473,1745871061492,-470.0,0.0003863,6]
[359253474,1745871061502,-200.292251,0.0003863,14]
[359253475,1745871061512,-470.0,0.0003863,6]
[359253476,1745871061523,-470.0,0.0003863,6]
[359253477,1745871061534,-470.0,0.0003863,6]
[359253478,1745871061544,-1958.29,0.0003863,6]
[359253479,1745871061553,-603.26,0.0003863,6]
[359253480,1745871061563,-470.0,0.0003863,6]
[359253481,1745871061574,-470.0,0.0003863,6]
[359253482,1745871061587,-470.0,0.0003863,6]
[359253483,1745871061596,-1227.07,0.0003863,6]
[359253484,1745871061607,-683.22,0.0003863,6]
[359253485,1745871061618,-155.34335,0.0003863,14]
[359253486,1745871061627,-568.21414641,0.0003863,6]
[359253487,1745871061638,-470.0,0.0003863,6]
[359253488,1745871061647,-470.0,0.0003863,6]
[359253489,1745871061657,-599.52,0.0003863,6]
[359253490,1745871061668,-1747.63,0.0003863,6]
[359253491,1745871061677,-470.0,0.0003863,6]
[359253492,1745871061687,-5247.81,0.0003863,6]
[359253493,1745871061697,-470.0,0.0003863,6]
[359253494,1745871061707,-470.0,0.0003863,6]
[359253495,1745871061716,-153.07186862,0.0003863,6]
[359253496,1745871061726,-568.54752002,0.0003863,6]
[359253497,1745871061735,-470.0,0.0003863,6]
[359253498,1745871061744,-562.61,0.0003863,6]
[359253499,1745871061755,-470.0,0.0003863,6]
[359253500,1745871061764,-151.0,0.0003863,14]
[359253501,1745871061773,-470.0,0.0003863,6]
[359253502,1745871061783,-470.0,0.0003863,2]
[359253503,1745871061793,-467.54304079,0.0003863,6]
[359253504,1745871061803,-151.0,0.0003863,14]
[359253505,1745871061812,-470.0,0.0003863,6]
[359253506,1745871061821,-470.0,0.0003863,6]
[359253507,1745871061831,-958.56,0.0003863,6]
[359253508,1745871061841,-151.0,0.0003863,14]
[359253509,1745871061851,-151.0,0.0003863,14]
[359253510,1745871061861,-470.0,0.0003863,6]
[359253511,1745871061870,-546.69,0.0003863,6]
[359253512,1745871061879,-470.0,0.0003863,6]
[359253513,1745871061888,-470.0,0.0003863,6]
[359253514,1745871061897,-470.0,0.0003863,6]
[359253515,1745871061908,-470.0,0.0003863,6]
[359253516,1745871061919,-470.0,0.0003863,6]
[359253517,1745871061930,-151.0,0.0003863,14]
[359253518,1745871061941,-151.0,0.0003863,14]
[359253519,1745871061952,-961.9,0.0003863,6]
[359253520,1745871061962,-470.0,0.0003863,6]
[359253521,1745871061973,-1703.16,0.0003863,6]
[359253522,1745871061982,-896.89,0.0003863,6]
[359253523,1745871061992,-1026.76,0.0003863,6]
[359253524,1745871062003,-724.68,0.0003863,6]
[359253525,1745871062013,-1236.69,0.0003863,6]
[359253526,1745871062023,-470.0,0.0003863,6]
[359253527,1745871062032,-470.0,0.0003863,6]
[359253528,1745871062042,-330.0,0.0003863,6]
[359253529,1745871062051,-151.0,0.0003863,14]
[359253530,1745871062062,-151.0,0.0003863,14]
[359253531,1745871062072,-470.0,0.0003863,6]
[359253532,1745871062082,-561.62,0.0003863,6]
[359253533,1745871062091,-470.0,0.0003863,6]
[359253534,1745871062102,-151.0,0.0003863,14]
[359253535,1745871062111,-470.0,0.0003863,6]
[359253536,1745871062121,-470.0,0.0003863,6]
[359253537,1745871062131,-151.0,0.0003863,14]
[359253538,1745871062141,-470.0,0.0003863,6]
[359253539,1745871062153,-470.0,0.0003863,6]
[359253540,1745871062163,-1577.96,0.0003863,6]
[359253541,1745871062172,-470.0,0.0003863,6]
[359253542,1745871062181,-470.0,0.0003863,6]
[359253543,1745871062190,-470.0,0.0003863,6]
[359253544,1745871062201,-1222.69,0.0003863,6]
[359253545,1745871062210,-470.0,0.0003863,6]
[359253546,1745871062220,-470.0,0.0003863,6]
[359253547,1745871062229,-151.0,0.0003863,14]
[359253548,1745871062239,-470.0,0.0003863,6]
[359253549,1745871062248,-151.0,0.0003863,14]
[359253550,1745871062257,-809.83,0.0003863,6]
[359253551,1745871062267,-470.0,0.0003863,6]
[359253552,1745871062276,-755.96,0.0003863,6]
[359253553,1745871062286,-616.01,0.0003863,6]
[359253554,1745871062295,-470.0,0.0003863,6]
[359253555,1745871062305,-523.9,0.0003863,6]
[359253556,1745871062315,-1141.53,0.0003863,6]
[359253557,1745871062324,-218.12029298,0.0003863,6]
[359253558,1745871062334,-470.0,0.0003863,6]
[359253559,1745871062489,-951.925764,0.0003863,14]
[359253560,1745871062499,-470.0,0.0003863,6]
[359253561,1745871062508,-200.0,0.0003863,2]
[359253562,1745871062518,-470.0,0.0003863,6]
[359253563,1745871062527,-1606.54,0.0003863,6]
[359253564,1745871062536,-470.0,0.0003863,6]
[359253565,1745871062545,-470.0,0.0003863,6]
[359253566,1745871062555,-951.925764,0.0003863,14]
[359253567,1745871062565,-470.0,0.0003863,6]
[359253568,1745871062577,-470.0,0.0003863,6]
[359253569,1745871062588,-470.0,0.0003863,6]
[359253570,1745871062598,-470.0,0.0003863,6]
[359253571,1745871062607,-260.09051039,0.0003863,6]
[359253572,1745871062615,-470.0,0.0003863,6]
[359253573,1745871062627,-3288.56,0.0003863,6]
[359253574,1745871062636,-470.0,0.0003863,6]
[359253575,1745871062645,-470.0,0.0003863,6]
[359253576,1745871062657,-541.39,0.0003863,6]
[359253577,1745871062667,-482.39,0.0003863,6]
[359253578,1745871062676,-507.76,0.0003863,6]
[359253579,1745871062685,-470.0,0.0003863,6]
[359253580,1745871062695,-652.69,0.0003863,6]
[359253581,1745871062704,-470.0,0.0003863,6]
[359253582,1745871062713,-5676.17,0.0003863,2]
[359253583,1745871062723,-591.76,0.0003863,6]
[359253584,1745871062732,-1724.44,0.0003863,6]
[359253585,1745871062741,-549.72005762,0.0003863,6]
[359253586,1745871062750,-151.0,0.0003863,14]
[359253587,1745871062759,-572.63,0.0003863,6]
[359253588,1745871062769,-470.0,0.0003863,6]
[359253589,1745871062778,-470.0,0.0003863,6]
[359253590,1745871062787,-470.0,0.0003863,6]
[359253591,1745871062797,-470.0,0.0003863,6]
[359253592,1745871062806,-470.0,0.0003863,6]
[359253593,1745871062815,-470.0,0.0003863,6]
[359253594,1745871062824,-470.0,0.0003863,6]
[359253595,1745871062834,-525.61,0.0003863,6]
[359253596,1745871062843,-470.0,0.0003863,6]
[359253597,1745871062852,-2160.47,0.0003863,6]
[359253598,1745871062861,-470.0,0.0003863,6]
[359253599,1745871062870,-518.41,0.0003863,6]
[359253600,1745871062879,-470.0,0.0003863,6]
[359253601,1745871062888,-151.0,0.0003863,14]
[359253602,1745871062898,-493.91,0.0003863,6]
[359253603,1745871062907,-470.0,0.0003863,6]
[359253604,1745871062916,-470.0,0.0003863,6]
[359253605,1745871062925,-314.03596671,0.00038646,2]
[359253606,1745871062935,-1167.5426383,0.00038646,2]
[359253607,1745871062944,-500.0,0.00038673,5]
[359253608,1745871062954,-500.0,0.00038673,5]
[359253609,1745871062963,-500.0,0.00038673,5]
[359253610,1745871062974,-500.0,0.00038673,2]
[359253611,1745871062983,-500.0,0.00038673,5]
[359253612,1745871062993,-500.0,0.00038673,5]
[359253613,1745871063002,-500.0,0.00038673,5]
[359253614,1745871063012,-387.7961174,0.00038673,5]
[359253615,1745871063021,-500.0,0.00038673,5]
[359253616,1745871063031,-500.0,0.00038673,5]
[359253617,1745871063040,-500.0,0.00038673,5]
[359253618,1745871063050,-500.0,0.00038673,5]
[359253619,1745871063060,-500.0,0.00038673,5]
[359253620,1745871063069,-500.0,0.00038673,5]
[359253621,1745871063079,-500.0,0.00038673,5]
[359253622,1745871063090,-500.0,0.00038684,2]
[359253623,1745871063100,-1705.0,0.00038685,5]
[359253624,1745871063110,-27800.0,0.00038685,5]
[359253625,1745871063120,-37592.0,0.00038685,5]
[359253626,1745871063130,-509.22,0.000387,120]
[359253627,1745871063140,-4344.67408187,0.00038706,2]
[359253628,1745871063150,-8040.08553049,0.00038706,2]
[359253629,1745871063159,-336.14333562,0.00038717,2]
[359253630,1745871063169,-1263.58,0.00038727,5]
[359253631,1745871063179,-28521.0,0.0003874,5]
[359253632,1745871063188,-151.0,0.0003874,14]
[359253633,1745871063198,-151.0,0.0003874,14]
[359253634,1745871063207,-151.0,0.0003874,14]
[359253635,1745871063217,-153.639178,0.0003874,14]
[359253636,1745871063227,-228.926148,0.0003874,14]
[359253637,1745871063237,-228.926148,0.0003874,14]
[359253638,1745871063247,-641.618154,0.0003874,14]
[359253639,1745871063256,-641.618154,0.0003874,14]
[359253640,1745871063266,-724.15444636,0.000388,10]
[359253641,1745871063276,-174.38,0.00038824,2]
[359253642,1745871063286,-151.0,0.0003884,14]
[359253643,1745871063296,-152.523711,0.0003884,14]
[359253644,1745871063305,-151.0,0.0003884,14]
[359253645,1745871063315,-13928.6126225,0.00038846,2]
[359253646,1745871063325,-151.0,0.00038849,14]
[359253647,1745871063334,-500.0,0.00038849,2]
[359253648,1745871063344,-151.0,0.0003885,14]
[359253649,1745871063353,-19576.9466221,0.0003885,2]
[359253650,1745871063363,-4344.67408187,0.00038859,2]
[359253651,1745871063372,-8040.08553049,0.00038859,2]
[359253652,1745871063382,-151.0,0.00038867,14]
[359253653,1745871063392,-151.0,0.00038867,14]
[359253654,1745871063401,-1273.55,0.00038873,5]
[359253655,1745871063411,-1267.58,0.00038873,5]
[359253656,1745871063421,-1260.19,0.00038873,5]
[359253657,1745871063430,-1239.81,0.00038873,5]
[359253658,1745871063440,-12215.6499871,0.00038877,2]
[359253659,1745871063449,-10502.6873518,0.00038877,2]
[359253660,1745871063459,-8789.7247164,0.00038877,2]
[359253661,1745871063469,-13433.53501415,0.00038877,2]
[359253662,1745871064628,-555.6,0.00038356,6]
[359253663,1745871064639,-1040.56,0.0003863,6]
[359253664,1745871064648,-3708.79442155,0.00038877,2]
[359253665,1745871064659,-14707.7122492,0.00038877,2]
[359253666,1745871064669,-12273.0950628,0.00038877,2]
[359253667,1745871064679,-9838.4778764,0.00038877,2]
[359253668,1745871064690,-151.0,0.00038877,14]
[359253669,1745871064700,-151.0,0.00038877,14]
[359253670,1745871064709,-151.0,0.00038877,14]
[359253671,1745871064720,-196.805074,0.00038877,14]
[359253672,1745871064730,-151.0,0.00038877,14]
[359253673,1745871064740,-200.292251,0.00038877,14]
[359253674,1745871064750,-200.292251,0.00038877,14]
[359253675,1745871064761,-151.0,0.00038877,14]
[359253676,1745871064771,-151.0,0.00038877,14]
[359253677,1745871064780,-1036.3641098,0.00038877,2]
[359253678,1745871064790,-905.1855812,0.00038877,2]
[359253679,1745871064800,-774.0070526,0.00038877,2]
[359253680,1745871064810,-951.925764,0.00038877,14]
[359253681,1745871064819,-951.925764,0.00038877,14]
[359253682,1745871064828,-950.1357725,0.00038877,2]
[359253683,1745871064838,-810.6173639,0.00038877,2]